fUSD/lending_fUSD_20250720
["ID","MTS","AMOUNT","RATE_DAILY","PERIOD"]
[373380536,1752977446319,-77.30469946,0.00019178,2]
[373380539,1752977446331,-480.0,0.00019178,2]
[373380541,1752977446340,-1164.07,0.00019178,2]
[373380543,1752977446350,-8334.19,0.00019178,2]
[373380545,1752977446359,-480.0,0.00019178,2]
[373380547,1752977446368,-480.0,0.00019178,2]
[373380549,1752977446378,-1522.88,0.00019178,2]
[373380551,1752977446387,-698.91,0.00019178,2]
[373380553,1752977446396,-480.0,0.00019178,2]
[373380555,1752977446406,-944.63,0.00019178,2]
[373380557,1752977446415,-480.0,0.00019178,2]
[373380559,1752977446424,-571.01,0.00019178,2]
[373380561,1752977446434,-1075.04,0.00019178,2]
[373380563,1752977446443,-480.0,0.00019178,2]
[373380565,1752977446452,-758.51,0.00019178,2]
[373380567,1752977446461,-482.48164871,0.00019178,2]
[373380569,1752977446470,-2997.92,0.00019178,2]
[373380571,1752977446479,-480.0,0.00019178,2]
[373380573,1752977446489,-480.0,0.00019178,2]
[373380575,1752977446498,-480.0,0.00019178,2]
[373380577,1752977446508,-893.26,0.00019178,2]
[373380579,1752977446517,-262.79087794,0.00019178,2]
[373380581,1752977446527,-480.0,0.00019178,2]
[373380583,1752977446536,-480.0,0.00019178,2]
[373380585,1752977446545,-480.0,0.00019178,2]
[373380587,1752977446554,-1246.8,0.00019178,2]
[373380589,1752977446565,-480.75471245,0.00019178,2]
[373380591,1752977446574,-385.46976353,0.00019178,2]
[373380593,1752977446583,-1532.21,0.00019178,2]
[373380595,1752977446592,-480.0,0.00019178,2]
[373380597,1752977446602,-480.0,0.00019178,2]
[373380599,1752977446611,-480.0,0.00019178,2]
[373380601,1752977446620,-1012.53,0.00019178,2]
[373380603,1752977446630,-480.0,0.00019178,2]
[373380605,1752977446639,-480.0,0.00019178,2]
[373380607,1752977446648,-902.11,0.00019178,2]
[373380609,1752977446658,-634.59,0.00019178,2]
[373380611,1752977446669,-480.0,0.00019178,2]
[373380613,1752977446678,-2385.54,0.00019178,2]
[373380615,1752977446688,-2959.86416615,0.00019178,2]
[373380682,1752977471867,289.18,0.00013699,2]
[373380683,1752977832114,161.07729917,0.00020712,30]
[373380684,1752977832659,161.07729917,0.00020959,30]
[373380685,1752977838284,315.15927901,0.000211,28]
[373380686,1752977949592,2008.61,0.0002501,120]
[373380688,1752978149758,524.0,0.00015055,2]
[373380695,1752978497451,190.0,0.00017497,7]
[373380705,1752978621096,283.96,0.00013699,2]
[373380717,1752978632048,-325.9782303,0.00017055,2]
[373380719,1752978632058,-178.0,0.00017055,2]
[373380721,1752978632067,-500.0,0.00017149,3]
[373380723,1752978632076,-324.1117697,0.00017174,2]
[373380725,1752978632088,-4312.9832329,0.00017174,2]
[373380726,1752978632104,-7276.0249974,0.00017174,2]
[373380727,1752978632113,-615.67,0.00017394,2]
[373380728,1752978632123,-150.0,0.0001741,2]
[373380729,1752978632132,-159.98,0.00017436,2]
[373380730,1752978632141,-1200.0,0.00017442,2]
[373380731,1752978632151,-151.0,0.00017443,2]
[373380732,1752978632160,-500.0,0.00017443,2]
[373380733,1752978632169,-500.0,0.00017443,2]
[373380734,1752978632179,-500.0,0.00017443,2]
[373380735,1752978632188,-477.29,0.00017449,2]
[373380736,1752978632198,-300.0,0.00017452,2]
[373380737,1752978632207,-4980.88,0.00017454,2]
[373380738,1752978632217,-212.1,0.00017468,2]
[373380739,1752978632226,-212.1,0.00017477,2]
[373380740,1752978632236,-303.67,0.00017479,2]
[373380741,1752978632245,-212.1,0.00017486,2]
[373380742,1752978632254,-167.21,0.00017488,2]
[373380743,1752978632263,-212.1,0.00017495,2]
[373380744,1752978632277,-470.72,0.00017497,2]
[373380745,1752978632286,-482.0,0.000175,2]
[373380746,1752978632295,-212.1,0.00017504,2]
[373380747,1752978632304,-212.1,0.00017514,2]
[373380748,1752978632312,-212.1,0.00017523,2]
[373380749,1752978632322,-212.1,0.00017532,2]
[373380750,1752978632331,-212.1,0.00017541,2]
[373380751,1752978632342,-212.1,0.00017551,2]
[373380752,1752978632351,-212.1,0.0001756,2]
[373380753,1752978632360,-258.0,0.0001756,2]
[373380754,1752978632369,-1000.0,0.0001756,2]
[373380755,1752978632378,-666.0,0.00017562,2]
[373380756,1752978632389,-212.1,0.00017569,2]
[373380757,1752978632399,-1388.76,0.00017572,2]
[373380758,1752978632409,-2014.87,0.00017574,2]
[373380759,1752978632417,-212.1,0.00017578,2]
[373380760,1752978632426,-212.1,0.00017587,2]
[373380761,1752978632436,-455.14,0.00017588,2]
[373380762,1752978632445,-212.1,0.00017597,2]
[373380763,1752978632454,-212.1,0.00017606,2]
[373380764,1752978632463,-150.0,0.00017614,2]
[373380765,1752978632473,-212.1,0.00017615,2]
[373380766,1752978632482,-212.1,0.00017624,2]
[373380767,1752978632491,-212.1,0.00017633,2]
[373380768,1752978632500,-212.1,0.00017643,2]
[373380769,1752978632509,-150.0,0.00017721,2]
[373380770,1752978632519,-150.0,0.00017788,2]
[373380771,1752978632529,-348.94,0.000178,2]
[373380772,1752978632538,-524.0,0.00017801,2]
[373380773,1752978632547,-167.21,0.00017929,2]
[373380774,1752978632556,-150.0,0.00017968,2]
[373380775,1752978632564,-1296.22986792,0.00018,2]
[373380776,1752978632573,-150.0,0.00018017,2]
[373380777,1752978632582,-150.0,0.00018047,2]
[373380778,1752978632591,-150.0,0.00018097,2]
[373380779,1752978632604,-186.93,0.00018105,2]
[373380780,1752978632613,-150.0,0.00018137,2]
[373380781,1752978632622,-600.0,0.00018171,2]
[373380782,1752978632631,-591.69530125,0.00018171,2]
[373380783,1752978632640,-207.4,0.00018171,2]
[373380784,1752978632649,-150.0,0.00018242,2]
[373380785,1752978632661,-150.0,0.00018294,2]
[373380786,1752978632671,-150.0,0.00018297,2]
[373380787,1752978632680,-152.51,0.00018319,2]
[373380788,1752978632689,-176.5,0.00018329,2]
[373380789,1752978632699,-152.51,0.00018331,2]
[373380790,1752978632708,-152.51,0.00018343,2]
[373380791,1752978632718,-303.67,0.00018353,2]
[373380792,1752978632727,-152.51,0.00018355,2]
[373380793,1752978632737,-152.51,0.00018367,2]
[373380794,1752978632747,-152.51,0.0001838,2]
[373380795,1752978632757,-152.51,0.00018392,2]
[373380796,1752978632767,-150.0,0.00018393,2]
[373380797,1752978632781,-152.51,0.00018404,2]
[373380798,1752978632791,-927.76,0.00018415,2]
[373380799,1752978632801,-152.51,0.00018416,2]
[373380800,1752978632811,-477.12,0.00018428,2]
[373380801,1752978632820,-152.51,0.00018429,2]
[373380802,1752978632829,-152.51,0.00018441,2]
[373380803,1752978632838,-152.51,0.00018453,2]
[373380804,1752978632848,-152.51,0.00018465,2]
[373380805,1752978632857,-152.51,0.00018477,2]
[373380806,1752978632867,-152.51,0.0001849,2]
[373380807,1752978632876,-152.51,0.00018502,2]
[373380808,1752978632886,-164.77,0.00018557,2]
[373380809,1752978632895,-172.11,0.00018557,2]
[373380810,1752978632905,-916.1,0.00018557,2]
[373380811,1752978632914,-2033.17,0.00018557,2]
[373380812,1752978632923,-357.65,0.00018557,2]
[373380813,1752978632932,-51.87240374,0.00018557,2]
[373380814,1752978632945,-112.89759626,0.00018557,2]
[373380815,1752978632954,-357.65,0.00018557,2]
[373380816,1752978632964,-164.77,0.00018557,2]
[373380817,1752978632973,-357.65,0.00018557,2]
[373380818,1752978632982,-1000.0,0.0001863,2]
[373380819,1752978632992,-1055.67470438,0.00018641,2]
[373380820,1752978633016,-700.62529562,0.00018641,2]
[373380821,1752978633028,-150.0,0.00018671,2]
[373380822,1752978633038,-150.0,0.00018708,2]
[373380823,1752978633048,-600.0,0.00018719,2]
[373380824,1752978633066,-250.0,0.00018761,2]
[373380825,1752978633080,-150.0,0.00018765,2]
[373380826,1752978633090,-150.0,0.00018766,2]
[373380827,1752978633109,-150.0,0.00018778,2]
[373380828,1752978633119,-472.0,0.0001878,2]
[373380829,1752978633128,-150.0,0.00018781,2]
[373380830,1752978633138,-150.0,0.00018793,2]
[373380831,1752978633148,-211.32,0.00018803,2]
[373380832,1752978633158,-150.0,0.00018815,2]
[373380833,1752978633168,-70.58711895,0.00018826,2]
[373380834,1752978633180,-79.41288105,0.00018826,2]
[373380835,1752978633190,-150.0,0.00018832,2]
[373380836,1752978633200,-150.0,0.00018874,2]
[373380837,1752978633210,-569.14978174,0.00018899,2]
[373380838,1752978633220,-150.0,0.00018924,2]
[373380839,1752978633231,-150.0,0.00018936,2]
[373380840,1752978633241,-250.22865491,0.00018995,2]
[373380841,1752978633250,-150.0,0.00019002,2]
[373380842,1752978633260,-150.0,0.00019035,2]
[373380843,1752978633273,-150.0,0.00019056,2]
[373380844,1752978633283,-150.0,0.00019059,2]
[373380845,1752978633294,-150.0,0.00019071,2]
[373380846,1752978633304,-150.0,0.00019078,2]
[373380847,1752978633313,-146.67958023,0.00019078,2]
[373380848,1752978633326,-19.20336408,0.00019078,2]
[373380849,1752978633336,-169.81914252,0.00019078,2]
[373380850,1752978633346,-150.92181613,0.00019078,2]
[373380851,1752978633356,-30194.485,0.00019078,2]
[373380852,1752978633365,-376.3732,0.00019078,2]
[373380853,1752978633376,-173.70678018,0.00019078,2]
[373380854,1752978637763,-479.30963867,0.00019078,2]
[373380855,1752978637775,-544.23035525,0.00019078,2]
[373380856,1752978637789,-807.13191094,0.00019078,2]
[373380857,1752978637820,-8654.37121496,0.00019078,2]
[373380858,1752978637829,-150.0,0.00019088,2]
[373380859,1752978637839,-159.16352714,0.000191,2]
[373380860,1752978637851,-418.54375762,0.000191,2]
[373380861,1752978637863,-430.29271524,0.000191,2]
[373380862,1752978637872,-150.0,0.00019107,2]
[373380863,1752978637882,-150.0,0.00019113,2]
[373380864,1752978637891,-150.0,0.00019113,2]
[373380865,1752978637901,-1680.0,0.00019136,2]
[373380866,1752978637910,-169.44134932,0.00019136,2]
[373380867,1752978637919,-315.68,0.00019168,3]
[373380868,1752978637928,-500.0,0.00019173,2]
[373380869,1752978637937,-42.33378528,0.00019178,2]
[373380870,1752978637949,-849.83407237,0.00019178,2]
[373380871,1752978637960,-290.72306176,0.00019178,2]
[373380872,1752978637976,-646.35522595,0.00019178,2]
[373380874,1752978638055,-44663.7320911,0.00019178,2]
[373380875,1752978638066,-136702.81075043,0.00019178,2]
[373380876,1752978638084,-24525.80092978,0.00019178,2]
[373380877,1752978638096,-24724.12930831,0.00019178,2]
[373380878,1752978638137,-1489.46171974,0.00019178,2]
[373380883,1752978638267,-648.5384333,0.00018751,2]
[373380884,1752978638376,-273.09931062,0.00018751,2]
[373382181,1752978680507,250.0,0.00015,2]
[373382184,1752979623262,278.46,0.00013699,2]
[373382189,1752979832293,-523.0,0.00015801,2]
[373382190,1752979832303,-104.68208494,0.00015801,2]
[373382191,1752979832316,-408.31791506,0.00015801,2]
[373382192,1752979832327,-5120.05626614,0.00016573,2]
[373382193,1752979832336,-300.0,0.00017199,2]
[373382194,1752979832346,-1200.0,0.00017199,2]
[373382195,1752979832355,-10045.33980496,0.000172,2]
[373382196,1752979832365,-3400.0,0.000173,2]
[373382197,1752979832374,-150.0,0.00017477,2]
[373382198,1752979832383,-167.5,0.00017494,2]
[373382199,1752979832394,-478.0,0.000175,2]
[373382200,1752979832403,-2188.58823389,0.00017505,2]
[373382201,1752979832412,-1000.0,0.00017543,2]
[373382202,1752979832421,-182.2,0.0001758,2]
[373382203,1752979832430,-163.71068148,0.00017589,3]
[373382204,1752979832439,-150.0,0.00017591,2]
[373382205,1752979832448,-1821.24,0.00017608,2]
[373382206,1752979832457,-150.0,0.00017611,2]
[373382207,1752979832466,-165.7,0.00017658,2]
[373382208,1752979832476,-300.0,0.00017713,2]
[373382209,1752979832486,-16433.55,0.00017714,2]
[373382210,1752979832495,-307.83,0.00017732,2]
[373382211,1752979832505,-666.0,0.00017748,2]
[373382212,1752979832516,-150.0,0.00017764,2]
[373382213,1752979832527,-6366.73125881,0.00017779,2]
[373382214,1752979832536,-150.0,0.00017877,2]
[373382215,1752979832547,-150.0,0.00017909,2]
[373382216,1752979832557,-150.0,0.0001792,2]
[373382217,1752979832567,-3488.91213609,0.00017954,2]
[373382218,1752979832576,-150.0,0.00017957,2]
[373382219,1752979832586,-150.0,0.00017988,2]
[373382220,1752979832596,-500.0,0.00017989,2]
[373382221,1752979832606,-513.88417279,0.00017989,2]
[373382222,1752979832615,-151.0,0.00017989,2]
[373382223,1752979832625,-151.0,0.00017989,2]
[373382224,1752979832634,-151.0,0.00017989,2]
[373382225,1752979832644,-151.0,0.00017989,2]
[373382226,1752979832654,-500.0,0.00017989,2]
[373382227,1752979832664,-500.0,0.00017989,2]
[373382228,1752979832675,-500.0,0.00017989,2]
[373382229,1752979832687,-500.0,0.00017989,2]
[373382230,1752979832697,-5000.0,0.00018,2]
[373382231,1752979832707,-500.0,0.00018014,2]
[373382232,1752979832717,-150.0,0.00018015,2]
[373382233,1752979832727,-150.0,0.00018054,2]
[373382234,1752979832738,-150.0,0.00018133,2]
[373382235,1752979832749,-849.12,0.00018153,2]
[373382236,1752979832759,-600.0,0.00018171,2]
[373382237,1752979832767,-207.4,0.00018171,2]
[373382238,1752979832777,-179.61,0.00018329,2]
[373382239,1752979832787,-150.78,0.00018356,2]
[373382240,1752979832796,-437.0,0.00018356,2]
[373382242,1752979832806,-300.28,0.00018356,2]
[373382243,1752979832814,-150.0,0.00018398,2]
[373382245,1752979832823,-344.0,0.00018438,2]
[373382246,1752979832833,-150.0,0.00018454,2]
[373382247,1752979832842,-182.2,0.00018459,2]
[373382248,1752979832851,-276.64,0.0001854,2]
[373382249,1752979832860,-150.0,0.0001854,2]
[373382250,1752979832869,-306.44,0.0001854,2]
[373382251,1752979832878,-310.88,0.0001854,2]
[373382252,1752979832887,-150.0,0.0001854,2]
[373382253,1752979832897,-722.86,0.0001854,2]
[373382254,1752979832908,-2345.98,0.0001854,2]
[373382255,1752979832918,-549.58,0.00018541,2]
[373382256,1752979832929,-150.0,0.00018565,2]
[373382257,1752979832941,-150.0,0.00018586,2]
[373382258,1752979832951,-150.0,0.00018631,2]
[373382259,1752979832962,-380.66514727,0.00018635,2]
[373382260,1752979832974,-150.0,0.00018646,2]
[373382261,1752979832984,-600.0,0.00018719,2]
[373382262,1752979832994,-150.0,0.00018723,2]
[373382263,1752979833003,-270.41799078,0.0001875,2]
[373382264,1752979833012,-150.0,0.0001878,2]
[373382265,1752979833022,-468.0,0.0001878,2]
[373382266,1752979833032,-420.0,0.00018781,2]
[373382267,1752979833041,-150.0,0.00018792,2]
[373382268,1752979833050,-150.0,0.00018798,2]
[373382269,1752979833060,-150.0,0.00018805,2]
[373382270,1752979833069,-150.0,0.00018805,2]
[373382271,1752979833079,-150.0,0.00018815,2]
[373382272,1752979833089,-150.0,0.00018822,2]
[373382273,1752979833098,-150.0,0.00018848,2]
[373382274,1752979833107,-150.0,0.00018862,2]
[373382275,1752979833116,-150.0,0.00018867,2]
[373382276,1752979833125,-1680.0,0.00018874,2]
[373382277,1752979833135,-94200.35831736,0.00018883,2]
[373382278,1752979833144,-200.0,0.00018905,2]
[373382279,1752979833153,-36025.58980237,0.00018907,2]
[373382280,1752979833167,-439.9855835,0.00018907,2]
[373382281,1752979833254,-1571.70034675,0.00018907,2]
[373382285,1752979839763,-3079.9083941,0.00018907,2]
[373382286,1752979839775,-5150.85776096,0.00018907,2]
[373382287,1752979839813,-1989.000155,0.00018907,2]
[373382330,1752979840405,-1198.29626484,0.00018907,2]
[373382332,1752979840417,-250.36450037,0.00018907,2]
[373382336,1752979840449,-2221.20800012,0.00018907,2]
[373382626,1752979843340,-5487.20659489,0.00018907,2]
[373382656,1752979843604,-719.04367454,0.00018907,2]
[373382658,1752979843616,-683.64827489,0.00018907,2]
[373383273,1752980079507,10000.0,0.00015,2]
[373383274,1752980396525,556.0,0.0002501,120]
[373383279,1752980622883,273.2,0.00013699,2]
[373383310,1752980739253,190.0,0.00017828,7]
[373383322,1752981031520,-509.0,0.00015819,2]
[373383324,1752981031530,-5000.0,0.00016,2]
[373383326,1752981031539,-300.0,0.00016194,2]
[373383327,1752981031548,-150.0,0.00016569,2]
[373383328,1752981031557,-150.0,0.00016808,2]
[373383329,1752981031567,-150.0,0.00016833,2]
[373383330,1752981031576,-150.0,0.00016879,2]
[373383331,1752981031585,-5000.0,0.00017,2]
[373383332,1752981031594,-150.0,0.00017008,2]
[373383333,1752981031603,-150.0,0.00017014,2]
[373383334,1752981031613,-300.0,0.00017401,2]
[373383335,1752981031622,-150.0,0.00017401,2]
[373383336,1752981031632,-150.0,0.00017435,2]
[373383337,1752981031641,-188.57,0.00017442,2]
[373383338,1752981031651,-666.0,0.00017445,2]
[373383339,1752981031661,-480.0,0.000175,2]
[373383340,1752981031671,-150.0,0.00017517,2]
[373383341,1752981031680,-150.0,0.0001753,2]
[373383342,1752981031689,-963.80779042,0.00017533,2]
[373383343,1752981031699,-545.02,0.0001762,2]
[373383344,1752981031708,-202.98,0.00017627,2]
[373383345,1752981031718,-1233.78,0.00017632,2]
[373383346,1752981031727,-250.0,0.0001769,2]
[373383347,1752981031736,-150.0,0.00017712,2]
[373383348,1752981031745,-150.0,0.00017736,2]
[373383349,1752981031755,-1200.0,0.00017782,2]
[373383350,1752981031764,-260.0,0.00017783,2]
[373383351,1752981031774,-300.0,0.00017783,2]
[373383352,1752981031784,-151.42433674,0.00017784,2]
[373383353,1752981031793,-500.0,0.00017784,2]
[373383354,1752981031803,-600.0,0.00017784,2]
[373383355,1752981031812,-175.17767666,0.00017784,2]
[373383356,1752981031821,-600.0,0.00017784,2]
[373383357,1752981031831,-600.0,0.00017784,2]
[373383358,1752981031840,-165.9543953,0.00017784,2]
[373383359,1752981031849,-600.0,0.00017784,2]
[373383360,1752981031859,-600.0,0.00017784,2]
[373383361,1752981031868,-600.0,0.00017784,2]
[373383362,1752981031877,-600.0,0.00017784,2]
[373383363,1752981031887,-600.0,0.00017784,2]
[373383364,1752981031896,-600.0,0.00017784,2]
[373383365,1752981031905,-151.0,0.00017784,2]
[373383366,1752981031913,-454.12829021,0.00017784,2]
[373383367,1752981031941,-145.87170979,0.00017784,2]
[373383368,1752981031950,-271.62485788,0.00017784,2]
[373383369,1752981031969,-328.37514212,0.00017784,2]
[373383370,1752981031978,-600.0,0.00017784,2]
[373383371,1752981031988,-500.0,0.00017784,2]
[373383372,1752981031997,-600.0,0.00017784,2]
[373383373,1752981032006,-500.0,0.00017784,2]
[373383374,1752981032015,-500.0,0.00017784,2]
[373383375,1752981032024,-459.64780739,0.00017784,2]
[373383376,1752981032036,-140.35219261,0.00017784,2]
[373383377,1752981032046,-500.0,0.00017784,2]
[373383378,1752981032055,-600.0,0.00017784,2]
[373383379,1752981032064,-500.0,0.00017784,2]
[373383380,1752981032073,-600.0,0.00017784,2]
[373383381,1752981032082,-600.0,0.00017784,2]
[373383382,1752981032091,-500.0,0.00017784,2]
[373383383,1752981032102,-600.0,0.00017784,2]
[373383385,1752981032113,-500.0,0.00017784,2]
[373383387,1752981032122,-600.0,0.00017784,2]
[373383389,1752981032132,-500.0,0.00017784,2]
[373383391,1752981032143,-615.71722561,0.00017784,2]
[373383393,1752981032153,-500.0,0.00017784,2]
[373383395,1752981032163,-500.0,0.00017784,2]
[373383397,1752981032172,-500.0,0.00017784,2]
[373383399,1752981032181,-500.0,0.00017784,2]
[373383402,1752981032192,-500.0,0.00017784,2]
[373383404,1752981032201,-500.0,0.00017784,2]
[373383406,1752981032211,-500.0,0.00017784,2]
[373383409,1752981032223,-500.0,0.00017784,2]
[373383412,1752981032232,-500.0,0.00017784,2]
[373383415,1752981032241,-500.0,0.00017784,2]
[373383418,1752981032250,-500.0,0.00017784,2]
[373383420,1752981032260,-500.0,0.00017784,2]
[373383422,1752981032269,-150.0,0.00017786,2]
[373383424,1752981032278,-30420.72,0.00017794,2]
[373383426,1752981032287,-150.0,0.00017821,2]
[373383428,1752981032297,-1000.0,0.00017828,2]
[373383430,1752981032307,-200.0,0.00017847,2]
[373383432,1752981032316,-15569.5249808,0.00017876,2]
[373383434,1752981032328,-1895.57637519,0.00017876,2]
[373383464,1752981032376,-5739.97864401,0.00017876,2]
[373383467,1752981032627,-150.0,0.00017884,2]
[373383469,1752981032637,-197.81,0.00018,2]
[373383471,1752981032647,-137.81122919,0.00018,5]
[373383474,1752981032664,-1099.72068669,0.00018,5]
[373383476,1752981032673,-150.0,0.00018013,2]
[373383478,1752981032682,-150.0,0.00018086,2]
[373383480,1752981032692,-169.8,0.00018137,2]
[373383482,1752981032702,-509.0,0.00018274,5]
[373383484,1752981032711,-3031.09741507,0.00018288,2]
[373383486,1752981032720,-660.15820963,0.00018288,2]
[373383488,1752981032729,-207.4,0.00018288,2]
[373383489,1752981032738,-151.18567683,0.00018288,2]
[373383491,1752981032747,-202.09957089,0.00018304,2]
[373383493,1752981032757,-188.57,0.00018314,2]
[373383495,1752981032766,-150.0,0.00018314,2]
[373383497,1752981032775,-150.0,0.00018327,2]
[373383499,1752981032785,-502.0,0.00018329,2]
[373383501,1752981032794,-350.25,0.00018329,2]
[373383503,1752981032803,-150.0,0.00018473,2]
[373383505,1752981032812,-150.0,0.00018491,2]
[373383507,1752981032822,-250.0,0.00018501,2]
[373383509,1752981032831,-300.0,0.00018501,2]
[373383511,1752981032841,-150.0,0.00018544,2]
[373383513,1752981032851,-150.0,0.00018553,2]
[373383515,1752981032860,-1003.45808136,0.00018554,2]
[373383517,1752981032870,-150.0,0.00018554,2]
[373383519,1752981032880,-711.01,0.0001863,2]
[373383521,1752981032890,-937.89,0.0001863,2]
[373383523,1752981032899,-150.0,0.00018641,2]
[373383525,1752981032907,-1167.0,0.00018768,2]
[373383527,1752981032917,-889.0,0.00018768,2]
[373383529,1752981032926,-6050.0,0.00018768,2]
[373383531,1752981032935,-4126.0,0.00018768,2]
[373383533,1752981032945,-21364.0,0.00018768,2]
[373383535,1752981032953,-150.0,0.00018775,2]
[373383537,1752981032963,-471.0,0.0001878,2]
[373383539,1752981032972,-663.995428,0.00018794,2]
[373383540,1752981032981,-162.52,0.000188,2]
[373383542,1752981032991,-162.0,0.000188,2]
[373383544,1752981033000,-162.0,0.000188,2]
[373383546,1752981033009,-164.07,0.000188,2]
[373383548,1752981033021,-168.0,0.00018826,2]
[373383550,1752981033031,-168.0,0.00018845,2]
[373383552,1752981033040,-150.0,0.00018873,2]
[373383554,1752981033049,-150.0,0.00018877,2]
[373383557,1752981033061,-351.71560083,0.00018888,2]
[373383558,1752981033079,-314.39914006,0.00018893,2]
[373383560,1752981033088,-170.58359074,0.00018903,2]
[373383562,1752981033098,-314.39914006,0.00018905,2]
[373383564,1752981033108,-35383.54896503,0.00018907,2]
[373383566,1752981033119,-1210.0,0.00018907,2]
[373383568,1752981033128,-1210.0,0.00018907,2]
[373383570,1752981033138,-1210.0,0.00018907,2]
[373383572,1752981033151,-1210.0,0.00018907,2]
[373383574,1752981033160,-1210.0,0.00018907,2]
[373383576,1752981033170,-1210.0,0.00018907,2]
[373383578,1752981033180,-181.35557149,0.00018907,2]
[373383580,1752981033191,-190.98537154,0.00018907,2]
[373383582,1752981033200,-150.0,0.00018907,2]
[373383584,1752981033210,-3178.12904,0.00018907,2]
[373383586,1752981033220,-1210.0,0.00018907,2]
[373383588,1752981033230,-1210.0,0.00018907,2]
[373383590,1752981033239,-1032.02737864,0.00018916,2]
[373383592,1752981033248,-92535.65819261,0.00018922,2]
[373383810,1752981037471,-413.85624419,0.00018,2]
[373383811,1752981037732,-4586.14375581,0.00018,2]
[373383812,1752981037742,-862.0,0.00018768,2]
[373383813,1752981037751,-1664.70012475,0.00018922,2]
[373383814,1752981037760,-170.5835907,0.00018935,2]
[373383815,1752981037770,-150.0,0.0001894,2]
[373383816,1752981037779,-450.59337516,0.00018947,2]
[373383817,1752981037788,-200.0,0.00018956,2]
[373383818,1752981037797,-170.5835907,0.00018968,2]
[373383819,1752981037806,-314.39914006,0.00018985,2]
[373383820,1752981037815,-150.0,0.00018988,2]
[373383821,1752981037825,-200.0,0.00018989,2]
[373383822,1752981037834,-170.5835907,0.00019,2]
[373383824,1752981037843,-33333.0,0.00019,2]
[373383826,1752981037853,-150.0,0.00019003,2]
[373383828,1752981037862,-350.25,0.00019016,2]
[373383830,1752981037872,-170.5835907,0.00019032,2]
[373383832,1752981037881,-150.0,0.00019042,2]
[373383834,1752981037890,-1032.0273786,0.00019044,2]
[373383836,1752981037899,-170.5835907,0.00019064,2]
[373383838,1752981037908,-597.46802039,0.00019077,2]
[373383840,1752981037917,-181.38590421,0.00019077,2]
[373383842,1752981037926,-2695.15630386,0.00019077,2]
[373383844,1752981037935,-187.39094583,0.00019077,2]
[373383846,1752981037945,-307.6761,0.00019078,2]
[373383849,1752981037955,-255.21380719,0.00019078,2]
[373383851,1752981037964,-268.9573,0.00019078,2]
[373383853,1752981037974,-2793.3276,0.00019078,2]
[373383855,1752981037983,-187.0,0.00019086,2]
[373383857,1752981037992,-170.5835907,0.00019097,2]
[373383859,1752981038001,-1008.87,0.000191,2]
[373383861,1752981038010,-1000.0,0.000191,2]
[373383863,1752981038019,-1448.29,0.000191,2]
[373383865,1752981038027,-427.63744994,0.0001912,2]
[373383867,1752981038039,-1162.7613197,0.0001912,2]
[373384020,1752981039618,-1587.73027036,0.0001912,2]
[373384022,1752981039628,-170.5835907,0.00019129,2]
[373384024,1752981039637,-168.0,0.00019156,2]
[373384026,1752981039646,-170.5835907,0.00019161,2]